bitfinex/quotes_SOLUSD_20250416
["timestamp","ask_amount","ask_price","bid_price","bid_amount"]
[1744803798603,34.1071039,125.87,125.85,1.0]
[1744803798812,34.1071039,125.87,125.86,1.0]
[1744803799599,11.84,125.87,125.86,1.0]
[1744803799997,11.84,125.87,125.86,23.26773513]
[1744803800215,26.16239905,125.91,125.86,23.26773513]
[1744803800420,26.16239905,125.91,125.87,14.32239905]
[1744803800809,34.10458613,125.91,125.89,1.0]
[1744803801118,26.16239905,125.91,125.89,1.0]
[1744803801915,11.84,125.91,125.89,1.0]
[1744803802219,11.84,125.91,125.9,1.0]
[1744803802409,11.84,125.91,125.89,1.0]
[1744803802714,19.78218092,125.91,125.9,1.0]
[1744803803017,11.84,125.91,125.9,1.0]
[1744803803720,26.16239905,125.91,125.9,1.0]
[1744803804015,11.84,125.91,125.89,1.0]
[1744803804215,26.16239905,125.91,125.9,1.0]
[1744803804518,11.84,125.91,125.9,1.0]
[1744803804716,11.84,125.91,125.9,15.32239905]
[1744803804914,14.7334882,125.95,125.94,1.0]
[1744803805612,29.05588725,125.95,125.94,1.0]
[1744803806118,29.05588725,125.95,125.93,1.0]
[1744803806320,14.7334882,125.95,125.94,1.0]
[1744803806618,29.05588725,125.95,125.94,1.0]
[1744803807519,29.05588725,125.95,125.93,1.0]
[1744803807722,29.05588725,125.95,125.94,1.0]
[1744803808330,29.05588725,125.95,125.93,1.0]
[1744803808623,29.05588725,125.95,125.94,1.0]
[1744803809011,14.7334882,125.95,125.94,1.0]
[1744803809204,29.05588725,125.95,125.94,1.0]
[1744803811205,29.05588725,125.95,125.93,1.0]
[1744803811407,29.05588725,125.95,125.94,1.0]
[1744803812024,29.05588725,125.95,125.93,1.0]
[1744803812325,14.32239905,125.94,125.93,1.0]
[1744803814230,36.99568515,125.95,125.93,1.0]
[1744803814923,14.32239905,125.94,125.93,1.0]
[1744803816604,14.32239905,125.94,125.91,7.94201648]
[1744803816605,22.26268807,125.94,125.92,1.0]
[1744803816803,14.32239905,125.94,125.93,1.0]
[1744803817607,22.26268807,125.94,125.92,1.0]
[1744803818832,14.32239905,125.93,125.91,1.0]
[1744803819008,14.32239905,125.92,125.91,1.0]
[1744803819206,7.94028902,125.94,125.91,1.0]
[1744803819408,14.32239905,125.92,125.91,1.0]
[1744803820325,7.94028902,125.94,125.9,1.0]
[1744803820502,14.32239905,125.92,125.9,1.0]
[1744803821128,14.32239905,125.91,125.89,1.0]
[1744803821430,25.86239905,125.9,125.87,1.0]
[1744803821606,14.32239905,125.88,125.86,1.0]
[1744803821928,14.32239905,125.87,125.85,1.0]
[1744803822103,14.32239905,125.87,125.8,21.50159146]
[1744803822104,14.32239905,125.86,125.84,1.0]
[1744803822304,25.86239905,125.85,125.84,1.0]
[1744803823926,25.86239905,125.85,125.83,1.0]
[1744803824105,11.54,125.85,125.83,1.0]
[1744803824309,14.32239905,125.84,125.83,1.0]
[1744803824925,11.54,125.85,125.83,1.0]
[1744803825225,25.86239905,125.85,125.84,1.0]
[1744803825828,11.54,125.85,125.84,1.0]
[1744803826021,11.54,125.85,125.84,15.32239905]
[1744803826224,11.54,125.85,125.84,1.0]
[1744803826415,25.86239905,125.85,125.84,1.0]
[1744803828430,33.80836647,125.85,125.84,1.0]
[1744803830512,33.80836647,125.85,125.82,1.0]
[1744803830711,14.32239905,125.83,125.82,1.0]
[1744803831129,14.32239905,125.84,125.82,1.0]
[1744803831333,11.54,125.83,125.82,1.0]
[1744803833536,11.54,125.83,125.82,23.27026107]
[1744803833728,11.54,125.87,125.84,1.0]
[1744803834107,25.86239905,125.87,125.84,1.0]
[1744803834617,14.32239905,125.86,125.84,1.0]
[1744803834823,22.26782055,125.86,125.84,1.0]
[1744803835529,14.32239905,125.85,125.84,1.0]
[1744803835847,14.32239905,125.85,125.83,1.0]
[1744803836031,14.32239905,125.84,125.83,1.0]
[1744803836535,14.32239905,125.84,125.82,1.0]
[1744803836733,14.32239905,125.84,125.83,1.0]
[1744803838039,14.32239905,125.86,125.84,1.0]
[1744803838239,11.54,125.87,125.86,1.0]
[1744803838425,25.86239905,125.87,125.85,1.0]
[1744803838617,33.8071039,125.87,125.85,1.0]
[1744803838931,33.8071039,125.87,125.86,1.0]
[1744803839713,11.54,125.87,125.86,1.0]
[1744803840416,25.86239905,125.87,125.86,1.0]
[1744803840616,11.54,125.87,125.86,1.0]
[1744803842641,11.54,125.87,125.86,8.94533608]
[1744803843648,11.54,125.87,125.86,1.0]
[1744803846246,25.86239905,125.87,125.86,1.0]
[1744803847644,33.8071039,125.87,125.85,1.0]
[1744803848049,33.8071039,125.87,125.86,1.0]
[1744803848344,25.86239905,125.87,125.86,1.0]
[1744803850345,33.8071039,125.87,125.86,1.0]
[1744803850549,25.86239905,125.87,125.86,1.0]
[1744803851750,33.8071039,125.87,125.86,1.0]
[1744803851954,33.8071039,125.87,125.85,1.0]
[1744803852423,33.8071039,125.87,125.86,1.0]
[1744803852624,33.8071039,125.87,125.85,1.0]
[1744803852848,33.8071039,125.87,125.82,14.32239905]
[1744803852849,14.32239905,125.86,125.84,1.0]
[1744803853164,14.32239905,125.85,125.83,1.0]
[1744803853445,14.32239905,125.84,125.82,1.0]
[1744803853620,14.32239905,125.83,125.82,1.0]
[1744803855046,22.26939631,125.84,125.82,1.0]
[1744803855647,14.32239905,125.84,125.82,1.0]
[1744803855857,22.26865514,125.85,125.82,1.0]
[1744803856227,22.26865514,125.85,125.84,1.0]
[1744803856626,7.94625609,125.85,125.84,1.0]
[1744803856831,7.94625609,125.85,125.81,1.0]
[1744803856832,22.26865514,125.85,125.81,1.0]
[1744803857153,14.32239905,125.83,125.81,1.0]
[1744803857353,25.60239905,125.82,125.81,1.0]
[1744803857730,11.28,125.82,125.81,1.0]
[1744803858626,11.28,125.84,125.83,1.0]
[1744803859454,25.60239905,125.84,125.83,1.0]
[1744803861349,11.28,125.84,125.83,1.0]
[1744803862033,25.60239905,125.84,125.83,1.0]
[1744803863156,20.45087192,125.84,125.83,1.0]
[1744803866963,28.39747077,125.84,125.83,1.0]
[1744803867345,20.45087192,125.84,125.83,1.0]
[1744803867654,28.39747077,125.84,125.83,1.0]
[1744803867853,28.39747077,125.84,125.82,1.0]
[1744803869969,9.17087192,125.83,125.82,1.0]
[1744803870644,28.39747077,125.84,125.82,1.0]
[1744803872471,28.39747077,125.84,125.83,1.0]
[1744803872770,28.39747077,125.84,125.8,7.94903869]
[1744803872771,28.39747077,125.84,125.82,1.0]
[1744803873668,11.28,125.84,125.83,1.0]
[1744803875969,28.39771844,125.84,125.82,1.0]
[1744803876156,9.17087192,125.83,125.82,1.0]
[1744803876559,20.45087192,125.84,125.82,1.0]
[1744803876874,20.45087192,125.84,125.83,1.0]
[1744803877090,28.39747077,125.84,125.83,1.0]
[1744803877552,28.39747077,125.84,125.82,1.0]
[1744803877752,9.17087192,125.83,125.82,1.0]
[1744803878478,13.12771502,125.83,125.82,1.0]
[1744803879675,21.07494541,125.83,125.82,1.0]
[1744803880358,11.90407349,125.83,125.82,1.0]
[1744803880672,21.07494541,125.83,125.82,1.0]
[1744803880888,21.07494541,125.83,125.81,1.0]
[1744803881175,21.07494541,125.83,125.82,1.0]
[1744803881577,21.07494541,125.83,125.81,1.0]
[1744803882760,9.17087192,125.82,125.81,1.0]
[1744803884581,21.07494541,125.83,125.82,1.0]
[1744803885280,21.07494541,125.83,125.8,1.0]
[1744803885578,21.07494541,125.83,125.81,1.0]
[1744803886176,21.07494541,125.83,125.82,1.0]
[1744803886781,21.07494541,125.83,125.81,1.0]
[1744803888973,11.90407349,125.83,125.81,1.0]
[1744803889179,21.07494541,125.83,125.81,1.0]
[1744803889385,9.17087192,125.82,125.8,1.0]
[1744803889570,9.17087192,125.81,125.79,1.0]
[1744803890084,9.17087192,125.82,125.79,1.0]
[1744803890581,9.17087192,125.82,125.81,1.0]
[1744803891178,17.11873394,125.82,125.81,1.0]
[1744803891361,28.17873394,125.82,125.81,1.0]
[1744803891966,28.17873394,125.82,125.8,1.0]
[1744803892276,28.17873394,125.82,125.81,1.0]
[1744803892467,19.00786202,125.82,125.81,1.0]
[1744803892677,28.17873394,125.82,125.81,1.0]
[1744803892883,11.06,125.82,125.81,1.0]
[1744803893189,28.17904894,125.82,125.81,1.0]
[1744803893487,28.17904894,125.82,125.8,1.0]
[1744803893679,9.17087192,125.81,125.79,1.0]
[1744803893859,9.17087192,125.8,125.78,1.0]
[1744803894172,9.17087192,125.8,125.79,1.0]
[1744803894369,19.00817702,125.82,125.77,7.950957]
[1744803894370,9.17087192,125.81,125.8,1.0]
[1744803895385,11.06,125.82,125.81,1.0]
[1744803900667,11.06,125.82,125.81,8.94849376]
[1744803900871,11.06,125.82,125.81,18.11936568]
[1744803901684,11.06,125.86,125.85,1.0]
[1744803901880,11.06,125.86,125.85,10.17087192]
[1744803902188,255.96374627,125.89,125.88,1.0]
[1744803902569,267.02374627,125.89,125.88,1.0]
[1744803902868,259.08,125.89,125.88,1.0]
[1744803903686,10.9167882,125.95,125.92,1.0]
[1744803903993,10.9167882,125.95,125.93,1.0]
[1744803904283,2.8934882,125.95,125.93,1.0]
[1744803904474,2.8934882,125.95,125.94,1.0]
[1744803904672,23.9065922,125.95,125.92,1.0]
[1744803904869,9.17087192,125.93,125.9,1.0]
[1744803905179,9.17087192,125.92,125.91,1.0]
[1744803905585,17.11242211,125.92,125.89,1.0]
[1744803905760,9.17087192,125.9,125.89,1.0]
[1744803905960,20.23087192,125.91,125.89,1.0]
[1744803907294,11.06,125.91,125.9,1.0]
[1744803908792,20.23087192,125.91,125.9,1.0]
[1744803909094,11.06,125.91,125.9,1.0]
[1744803909392,20.23087192,125.91,125.9,1.0]
[1744803909587,28.17305284,125.91,125.89,1.0]
[1744803909769,28.17305284,125.91,125.9,1.0]
[1744803909770,20.23087192,125.91,125.9,1.0]
[1744803910169,11.06,125.91,125.9,1.0]
[1744803910592,20.23087192,125.91,125.9,1.0]
[1744803910792,28.17305284,125.91,125.88,1.0]
[1744803910993,9.17087192,125.89,125.88,1.0]
[1744803912404,9.17087192,125.89,125.87,1.0]
[1744803912563,9.17087192,125.88,125.86,1.0]
[1744803912768,9.17087192,125.87,125.86,1.0]
[1744803913879,9.17087192,125.87,125.85,1.0]
[1744803914196,11.0,125.86,125.85,1.0]
[1744803918893,11.0,125.86,125.85,8.94596742]
[1744803919106,11.0,125.9,125.89,1.0]
[1744803919396,11.0,125.94,125.93,1.0]
[1744803919577,11.0,125.94,125.93,10.17087192]
[1744803919901,11.0,125.94,125.93,1.0]
[1744803920079,20.17087192,125.94,125.92,1.0]
[1744803920278,9.17087192,125.93,125.92,1.0]
[1744803921076,28.11163612,125.94,125.92,1.0]
[1744803921289,33.24775416,125.94,125.92,1.0]
[1744803921701,25.30698996,125.94,125.92,1.0]
[1744803922001,25.30698996,125.94,125.93,1.0]
[1744803922296,33.24734921,125.94,125.92,1.0]
[1744803922686,25.30698996,125.94,125.93,1.0]
[1744803922991,18.94028902,125.94,125.92,1.0]
[1744803923195,18.94028902,125.94,125.93,1.0]
[1744803923489,25.30698996,125.94,125.93,1.0]
[1744803923701,33.24727898,125.94,125.92,1.0]
[1744803923881,14.30698996,125.93,125.92,1.0]
[1744803924812,22.24790951,125.93,125.92,1.0]
[1744803927300,11.0,125.94,125.93,1.0]
[1744803932105,25.30698996,125.94,125.93,1.0]
[1744803932607,11.0,125.94,125.93,1.0]
[1744803933112,11.0,125.94,125.93,0.97513487]
[1744803933424,2.8934882,125.95,125.93,0.97513487]
[1744803933606,2.8934882,125.95,125.94,15.28212483]
[1744803934593,2.8934882,125.95,125.94,0.97513487]
[1744803934795,2.8934882,125.95,125.94,15.28212483]
[1744803934992,2.8934882,125.95,125.94,23.22241385]
[1744803935194,2.8934882,125.95,125.94,8.91542389]
[1744803935399,2.8934882,125.95,125.94,0.97513487]
[1744803935710,2.8934882,125.95,125.94,8.91542389]
[1744803936010,2.8934882,125.95,125.94,23.22241385]
[1744803939710,2.8934882,125.95,125.94,0.97513487]
[1744803940109,2.8934882,125.95,125.94,8.91542389]
[1744803940308,2.8934882,125.95,125.94,0.97513487]
[1744803940810,28.18047816,125.95,125.94,0.97513487]
[1744803940995,36.12013675,125.95,125.93,0.97513487]
[1744803941194,36.12013675,125.95,125.92,0.97513487]
[1744803941195,14.30698996,125.94,125.92,0.97513487]
[1744803941394,14.30698996,125.93,125.92,0.97513487]
[1744803941791,22.24790951,125.93,125.92,0.97513487]
[1744803943511,14.30698996,125.93,125.92,0.97513487]
[1744803944023,14.30698996,125.94,125.92,0.97513487]
[1744803944204,13.8734882,125.95,125.94,0.97513487]
[1744803944404,28.18047816,125.95,125.94,0.97513487]
[1744803945418,13.8734882,125.95,125.94,0.97513487]
[1744803945617,28.18047816,125.95,125.94,0.97513487]
[1744803946315,13.8734882,125.95,125.94,0.97513487]
[1744803946516,2.8934882,125.95,125.94,23.22241385]
[1744803948305,2.8934882,125.95,125.94,8.91542389]
[1744803948700,2.8934882,125.95,125.94,0.97513487]
[1744803949218,2.8934882,125.95,125.94,8.91542389]
[1744803950013,2.8934882,125.95,125.94,23.22241385]
[1744803951212,2.8934882,125.95,125.94,8.91542389]
[1744803954525,2.8934882,125.95,125.94,23.22241385]
[1744803957931,2.8934882,125.95,125.94,8.91542389]
[1744803958230,2.8934882,125.95,125.94,0.97513487]
[1744803958809,2.8934882,125.95,125.94,8.91542389]
[1744803959435,2.8934882,125.95,125.94,23.22241385]
[1744803961134,2.8934882,125.95,125.94,23.36457542]
[1744803962524,25.28698996,126.01,126.0,0.97513487]
[1744803963254,33.22286806,126.01,126.0,0.97513487]
[1744803964550,25.28698996,126.01,126.0,0.97513487]
[1744803966227,33.22286806,126.01,126.0,0.97513487]
[1744803966654,25.28698996,126.01,126.0,0.97513487]
[1744803967827,14.30698996,126.01,126.0,0.97513487]
[1744803968028,25.24698996,126.01,126.0,0.97513487]
[1744803968342,10.94,126.01,126.0,0.97513487]
[1744803969150,10.94,126.04,126.03,0.97513487]
[1744803970527,25.24698996,126.04,126.03,0.97513487]
[1744803970986,33.18097916,126.04,126.03,0.97513487]
[1744803972225,14.30698996,126.04,126.02,26.97513487]
[1744803972541,7.92895654,126.12,126.11,0.97513487]
[1744803972746,22.2359465,126.12,126.1,0.97513487]
[1744803972933,15.879873,126.13,126.11,0.97513487]
[1744803973131,0.44077308,126.14,126.11,0.97513487]
[1744803973337,0.44077308,126.14,126.13,0.97513487]
[1744803976547,23.25529891,126.14,126.13,0.97513487]
[1744803978249,31.18299829,126.14,126.13,0.97513487]
[1744803978453,23.25529891,126.14,126.13,0.97513487]
[1744803980461,31.18299829,126.14,126.13,0.97513487]
[1744803980653,0.44077308,126.14,126.13,0.97513487]
[1744803980850,23.25529891,126.14,126.13,0.97513487]
[1744803981568,31.18299829,126.14,126.13,0.97513487]
[1744803982277,0.44077308,126.14,126.13,0.97513487]
[1744803982447,31.18299829,126.14,126.13,0.97513487]
[1744803990376,31.18299829,126.14,126.09,30.74505663]
[1744803990377,31.18299829,126.14,126.12,0.97513487]
[1744803990682,8.36847246,126.14,126.13,0.97513487]
[1744803991661,8.36847246,126.14,126.12,0.97513487]
[1744803991863,22.81452583,126.13,126.12,0.97513487]
[1744803992577,22.81452583,126.13,126.11,0.97513487]
[1744803992771,8.36847246,126.14,126.12,0.97513487]
[1744803993576,28.18772091,126.14,126.11,0.97513487]
[1744803993879,28.18772091,126.14,126.12,0.97513487]
[1744803994076,22.81452583,126.13,126.11,0.97513487]
[1744803994287,22.81452583,126.12,126.11,0.97513487]
[1744803994969,22.81452583,126.12,126.1,0.97513487]
[1744803995169,22.81452583,126.11,126.1,0.97513487]
[1744803995677,30.74411111,126.11,126.1,0.97513487]
[1744803996475,30.74411111,126.11,126.09,0.97513487]
[1744803996679,33.73452583,126.1,126.09,0.97513487]
[1744803997274,25.19508982,126.1,126.09,0.97513487]
[1744803998379,33.12530393,126.1,126.09,0.97513487]
[1744804000862,18.85021411,126.1,126.09,0.97513487]
[1744804001062,33.12530393,126.1,126.09,0.97513487]
[1744804002060,33.12530393,126.1,126.08,0.97513487]
[1744804002275,14.27508982,126.09,126.08,0.97513487]
[1744804002877,22.20593286,126.09,126.08,0.97513487]
[1744804003876,7.93084304,126.09,126.08,0.97513487]
[1744804004079,22.20593286,126.09,126.08,0.97513487]
[1744804004266,7.93084304,126.09,126.08,0.97513487]
[1744804004467,14.27508982,126.09,126.08,0.97513487]
[1744804006360,10.92,126.1,126.09,0.97513487]
[1744804006889,0.44077308,126.14,126.13,0.97513487]
[1744804007990,0.44077308,126.14,126.13,15.25022469]
[1744804008288,0.44077308,126.14,126.13,23.1785526]
[1744804010165,0.44077308,126.14,126.13,23.32071417]
[1744804011293,2.8934882,126.2,126.19,0.97513487]
[1744804012382,2.8934882,126.2,126.19,15.25022469]
[1744804012690,2.8934882,126.2,126.19,8.89969307]
[1744804012882,2.8934882,126.2,126.19,23.17478289]
[1744804013093,2.8934882,126.2,126.19,15.25022469]
[1744804013395,2.8934882,126.2,126.19,0.97513487]
[1744804016200,2.8934882,126.2,126.19,23.17478289]
[1744804016700,2.8934882,126.2,126.19,8.89969307]
[1744804016891,2.8934882,126.2,126.19,0.97513487]
[1744804019773,2.8934882,126.2,126.19,8.89969307]
[1744804019974,2.8934882,126.2,126.19,0.97513487]
[1744804020399,2.8934882,126.2,126.19,23.17478289]
[1744804020603,2.8934882,126.2,126.19,23.31694446]
[1744804021612,7.9049,126.36,126.25,0.97513487]
[1744804021809,7.9049,126.36,126.2,83.14216157]
[1744804021810,20.0,126.37,126.3,0.97513487]
[1744804022099,14.27508982,126.35,126.32,0.97513487]
[1744804022281,14.27508982,126.33,126.31,0.97513487]
[1744804022476,14.27508982,126.32,126.31,0.97513487]
[1744804022813,40.27508982,126.32,126.28,0.97513487]
[1744804023096,14.27508982,126.29,126.27,0.97513487]
[1744804023306,14.27508982,126.31,126.29,0.97513487]
[1744804023527,11.02,126.3,126.29,0.97513487]
[1744804025497,14.27508982,126.32,126.31,0.97513487]
[1744804025822,25.29508982,126.32,126.31,0.97513487]
[1744804025996,11.02,126.32,126.31,0.97513487]
[1744804028107,11.02,126.32,126.31,23.16725422]
[1744804028306,11.02,126.32,126.31,8.8921644]
[1744804029726,14.27508982,126.34,126.31,0.97513487]
[1744804029908,14.27508982,126.35,126.33,0.97513487]
[1744804030108,11.22,126.34,126.33,0.97513487]
[1744804030608,25.49508982,126.34,126.33,0.97513487]
[1744804031142,44.64964886,126.33,126.28,0.97513487]
[1744804031350,14.27508982,126.29,126.27,0.97513487]
[1744804031526,25.49508982,126.28,126.27,0.97513487]
[1744804032345,11.22,126.28,126.27,15.25022469]
[1744804032926,11.22,126.28,126.27,0.97513487]
[1744804033129,11.22,126.28,126.26,0.97513487]
[1744804033130,25.49508982,126.28,126.26,0.97513487]
[1744804033319,14.27508982,126.27,126.25,0.97513487]
[1744804033519,14.27508982,126.26,126.25,0.97513487]
[1744804033818,14.27508982,126.26,126.24,0.97513487]
[1744804034037,6.5579,126.27,126.25,0.97513487]
[1744804034234,14.27508982,126.26,126.23,0.97513487]
[1744804034435,14.27508982,126.24,126.21,0.97513487]
[1744804034759,14.27508982,126.22,126.21,0.97513487]
[1744804034919,25.49508982,126.23,126.22,0.97513487]
[1744804035233,11.22,126.23,126.22,0.97513487]
[1744804035428,33.41713687,126.23,126.22,0.97513487]
[1744804035840,25.49508982,126.23,126.22,0.97513487]
[1744804036042,11.22,126.23,126.22,0.97513487]
[1744804037141,11.22,126.23,126.22,23.17289938]
[1744804038325,25.49508982,126.23,126.22,0.97513487]
[1744804038531,25.49508982,126.23,126.21,0.97513487]
[1744804038735,14.27508982,126.22,126.21,0.97513487]
[1744804039135,11.22,126.23,126.21,0.97513487]
[1744804039136,25.49508982,126.23,126.21,0.97513487]
[1744804039342,25.49508982,126.23,126.22,0.97513487]
[1744804039851,11.22,126.23,126.22,0.97513487]
[1744804040022,25.49508982,126.23,126.22,0.97513487]
[1744804040925,14.27508982,126.24,126.22,0.97513487]
[1744804041126,11.22,126.23,126.22,0.97513487]
[1744804041331,11.22,126.23,126.22,8.89780956]
[1744804041724,11.22,126.23,126.22,0.97513487]
[1744804042038,6.5579,126.27,126.22,23.17289938]
[1744804042257,15.90848982,126.28,126.27,0.97513487]
[1744804042444,15.90848982,126.28,126.26,0.97513487]
[1744804042445,27.12848982,126.28,126.26,0.97513487]
[1744804042648,12.8534,126.28,126.27,0.97513487]
[1744804042941,27.12848982,126.28,126.27,0.97513487]
[1744804044035,45.77813868,126.28,126.27,0.97513487]
[1744804044344,27.12848982,126.28,126.26,0.97513487]
[1744804044541,14.27508982,126.27,126.26,0.97513487]
[1744804046633,14.27508982,126.27,126.23,0.97513487]
[1744804046634,18.64964886,126.26,126.23,0.97513487]
[1744804046949,14.27508982,126.24,126.23,0.97513487]
[1744804048968,22.19650933,126.24,126.22,0.97513487]
[1744804049139,25.49508982,126.23,126.21,0.97513487]
[1744804049341,11.22,126.23,126.22,0.97513487]
[1744804050659,11.22,126.23,126.21,0.97513487]
[1744804050859,14.27508982,126.22,126.21,0.97513487]
[1744804051451,11.22,126.23,126.22,0.97513487]
[1744804051641,25.49508982,126.23,126.22,0.97513487]
[1744804052733,33.41713687,126.23,126.21,0.97513487]
[1744804052937,14.27508982,126.22,126.21,0.97513487]
[1744804053139,14.27508982,126.22,126.2,0.97513487]
[1744804053338,19.14204705,126.23,126.2,0.97513487]
[1744804053339,14.27508982,126.21,126.2,0.97513487]
[1744804055085,14.27508982,126.21,126.19,0.97513487]
[1744804055378,14.27508982,126.2,126.19,0.97513487]
[1744804056078,19.94458362,126.25,126.19,0.97513487]
[1744804056079,1.5686,126.26,126.22,0.97513487]
[1744804056402,11.22,126.27,126.26,0.97513487]
[1744804057872,11.22,126.27,126.26,8.8952996]
[1744804058570,11.22,126.27,126.26,23.17038942]
[1744804058985,11.22,126.27,126.26,8.8952996]
[1744804059303,11.22,126.27,126.26,23.17038942]
[1744804060503,11.26,126.31,126.29,0.97513487]
[1744804060711,11.26,126.31,126.3,0.97513487]
[1744804062713,11.26,126.31,126.3,8.89279124]
[1744804064212,25.53508982,126.34,126.3,8.89279124]
[1744804064396,25.53508982,126.34,126.33,0.97513487]
[1744804065583,25.53508982,126.34,126.32,0.97513487]
[1744804065908,11.26,126.34,126.33,0.97513487]
[1744804066905,25.53508982,126.34,126.33,0.97513487]
[1744804067200,52.1000917,126.34,126.33,0.97513487]
[1744804067402,25.53508982,126.34,126.33,0.97513487]
[1744804067581,33.45023941,126.34,126.33,0.97513487]
[1744804068006,52.09988827,126.34,126.3,0.97513487]
[1744804068199,52.09988827,126.34,126.31,0.97513487]
[1744804068200,37.82479845,126.34,126.31,0.97513487]
[1744804068408,14.27508982,126.32,126.3,0.97513487]
[1744804068703,14.27508982,126.31,126.29,0.97513487]
[1744804068901,14.27508982,126.3,126.29,0.97513487]
[1744804069693,22.19274619,126.3,126.29,0.97513487]
[1744804070294,14.27508982,126.3,126.29,0.97513487]
[1744804070506,22.19275533,126.3,126.28,0.97513487]
[1744804070709,25.53508982,126.29,126.28,0.97513487]
[1744804071092,1.5627,126.33,126.32,0.97513487]
[1744804071303,27.09778982,126.33,126.32,0.97513487]
[1744804071604,19.17609305,126.33,126.32,0.97513487]
[1744804071807,33.45118287,126.33,126.31,0.97513487]
[1744804072010,19.17609305,126.33,126.32,0.97513487]
[1744804072698,19.17609305,126.33,126.31,0.97513487]
[1744804073008,19.17609305,126.33,126.32,0.97513487]
[1744804073202,33.45118287,126.33,126.32,0.97513487]
[1744804074009,11.26,126.33,126.32,0.97513487]
[1744804074308,258.48,126.35,126.34,0.97513487]
[1744804074988,11.26,126.35,126.34,0.97513487]
[1744804075698,14.27508982,126.38,126.34,15.25022469]
[1744804075895,14.27508982,126.38,126.37,0.97513487]
[1744804076299,14.27508982,126.39,126.38,0.97513487]
[1744804076516,22.18710817,126.39,126.38,0.97513487]
[1744804076701,7.91201835,126.39,126.38,0.97513487]
[1744804076899,22.18710817,126.39,126.38,0.97513487]
[1744804077101,14.27508982,126.39,126.38,0.97513487]
[1744804077299,11.26,126.4,126.39,0.97513487]
[1744804077498,22.72701292,126.41,126.4,0.97513487]
[1744804077696,30.63777947,126.41,126.4,0.97513487]
[1744804078206,69.28742833,126.41,126.38,0.97513487]
[1744804078407,22.72701292,126.39,126.38,0.97513487]
[1744804078799,22.72701292,126.39,126.37,0.97513487]
[1744804079004,22.72701292,126.38,126.37,0.97513487]
[1744804080399,30.63965732,126.38,126.35,0.97513487]
[1744804080601,22.72701292,126.36,126.34,0.97513487]
[1744804080801,22.72701292,126.35,126.34,0.97513487]
[1744804081014,11.26,126.37,126.36,0.97513487]
[1744804081201,33.98701292,126.37,126.36,0.97513487]
[1744804081803,11.26,126.37,126.36,0.97513487]
[1744804083215,11.26,126.37,126.36,8.88903167]
[1744804083418,11.26,126.37,126.36,31.61604459]
[1744804084010,11.26,126.37,126.36,8.88903167]
[1744804084209,11.26,126.43,126.42,0.97513487]
[1744804084417,33.98701292,126.43,126.42,0.97513487]
[1744804084630,11.26,126.43,126.42,0.97513487]
[1744804085206,33.98701292,126.43,126.42,0.97513487]
[1744804085924,11.26,126.43,126.42,0.97513487]
[1744804086105,34.18701292,126.44,126.43,0.97513487]
[1744804086502,11.46,126.44,126.43,0.97513487]
[1744804086706,34.18701292,126.44,126.43,0.97513487]
[1744804087119,11.46,126.44,126.43,0.97513487]
[1744804087426,0.2,126.44,126.43,8.88465001]
[1744804088522,0.2,126.44,126.43,37.98956293]
[1744804089232,1e-08,126.45,126.43,64.98956293]
[1744804089415,1e-08,126.45,126.44,24.70214779]
[1744804090010,1e-08,126.45,126.44,50.70214779]
[1744804090217,1e-08,126.45,126.44,50.84430936]
[1744804090418,1e-08,126.45,126.44,58.61103738]
[1744804090612,1e-08,126.45,126.44,57.61103738]
[1744804090811,1e-08,126.45,126.44,31.61103738]
[1744804091017,1e-08,126.45,126.44,8.88402446]
[1744804091210,1e-08,126.45,126.44,31.61103738]
[1744804094027,1e-08,126.45,126.44,32.61103738]
[1744804094729,1e-08,126.45,126.44,57.61103738]
[1744804094929,1e-08,126.45,126.44,32.61103738]
[1744804095330,1e-08,126.45,126.44,58.61103738]
[1744804097211,1e-08,126.45,126.44,32.61103738]
[1744804097431,1e-08,126.45,126.44,32.75319895]
[1744804098335,1e-08,126.45,126.44,44.15319895]
[1744804098628,11.4,126.54,126.53,0.97513487]
[1744804098831,11.4,126.58,126.57,0.97513487]
[1744804099215,34.12701292,126.58,126.57,0.97513487]